[Event "Titled Tuesday Blitz March 08 Early 2022"]
[White "Mitusov, Semen"]
[Black "Molina, Roberto Junio Brito"]
[WhiteFideId "14151049"]
[BlackFideId "2109450"]
[WhiteElo "2265"]
[BlackElo "2432"]
[Result "1-0"]
[Round "08"]
[TimeControl "180+1"]
[Date "2022.03.08"]
[WhiteClock "0:00:18"]
[BlackClock "0:00:34"]

1. e4 {[%clk 0:02:56]}  c6 {[%clk 0:02:58]} 2. d4 {[%clk 0:02:56]}  d5 {[%clk 0:02:59]} 3. e5 {[%clk 0:02:57]}  Bf5 {[%clk 0:02:58]} 4. h4 {[%clk 0:02:56]}  Qb6 {[%clk 0:02:58]} 5. Ne2 {[%clk 0:02:45]}  h6 {[%clk 0:02:55]} 6. Ng3 {[%clk 0:02:43]}  Bd7 {[%clk 0:02:54]} 7. c3 {[%clk 0:02:40]}  e6 {[%clk 0:02:51]} 8. Nd2 {[%clk 0:02:30]}  c5 {[%clk 0:02:50]} 9. Nf3 {[%clk 0:02:23]}  Nc6 {[%clk 0:02:48]} 10. Be2 {[%clk 0:02:22]}  cxd4 {[%clk 0:02:44]} 11. cxd4 {[%clk 0:02:21]}  O-O-O {[%clk 0:02:44]} 12. O-O {[%clk 0:02:17]}  Kb8 {[%clk 0:02:43]} 13. a3 {[%clk 0:02:15]}  Rc8 {[%clk 0:02:43]} 14. b4 {[%clk 0:02:14]}  Nge7 {[%clk 0:02:39]} 15. Be3 {[%clk 0:02:05]}  Nd8 {[%clk 0:02:38]} 16. a4 {[%clk 0:02:00]}  Qxb4 {[%clk 0:02:32]} 17. Bd2 {[%clk 0:01:58]}  Qb6 {[%clk 0:02:30]} 18. a5 {[%clk 0:01:58]}  Qc7 {[%clk 0:02:29]} 19. a6 {[%clk 0:01:55]}  b6 {[%clk 0:02:25]} 20. Bd3 {[%clk 0:01:47]}  Bc6 {[%clk 0:02:19]} 21. Qb3 {[%clk 0:01:36]}  Qd7 {[%clk 0:02:17]} 22. Rfb1 {[%clk 0:01:31]}  Rc7 {[%clk 0:02:14]} 23. Ne2 {[%clk 0:01:20]}  Nc8 {[%clk 0:02:01]} 24. Nc3 {[%clk 0:01:20]}  Be7 {[%clk 0:01:46]} 25. h5 {[%clk 0:01:19]}  f6 {[%clk 0:01:40]} 26. Re1 {[%clk 0:01:05]}  Rf8 {[%clk 0:01:36]} 27. Bf4 {[%clk 0:01:02]}  f5 {[%clk 0:01:36]} 28. Rab1 {[%clk 0:00:59]}  Qe8 {[%clk 0:01:30]} 29. Bd2 {[%clk 0:00:47]}  Qxh5 {[%clk 0:01:29]} 30. Nb5 {[%clk 0:00:47]}  Rd7 {[%clk 0:01:29]} 31. Rec1 {[%clk 0:00:43]}  Bg5 {[%clk 0:01:21]} 32. Qc2 {[%clk 0:00:33]}  Bxd2 {[%clk 0:01:11]} 33. Qxd2 {[%clk 0:00:27]}  Qe8 {[%clk 0:01:11]} 34. Ne1 {[%clk 0:00:26]}  Qe7 {[%clk 0:01:09]} 35. Nc2 {[%clk 0:00:26]}  Bxb5 {[%clk 0:01:08]} 36. Bxb5 {[%clk 0:00:26]}  Rc7 {[%clk 0:01:08]} 37. Nb4 {[%clk 0:00:26]}  Rf7 {[%clk 0:01:05]} 38. Rxc7 {[%clk 0:00:23]}  Qxc7 {[%clk 0:01:05]} 39. Rc1 {[%clk 0:00:24]}  Qe7 {[%clk 0:01:02]} 40. Qc3 {[%clk 0:00:24]}  Qc7 {[%clk 0:01:00]} 41. Qd2 {[%clk 0:00:22]}  Qe7 {[%clk 0:01:00]} 42. Rc2 {[%clk 0:00:18]}  Rf8 {[%clk 0:00:49]} 43. Qc1 {[%clk 0:00:17]}  Nf7 {[%clk 0:00:33]} 44. Nc6+ {[%clk 0:00:17]}  Ka8 {[%clk 0:00:33]} 45. Nxe7 {[%clk 0:00:18]}  Nxe7 {[%clk 0:00:34]} 46. Rc7 {[%clk 0:00:18]} 1-0


[Site "https://www.chess.com"]

[Event "Titled Tuesday Blitz March 08 Early 2022"]
[White "Nguyen, Thien Ngan"]
[Black "Nozdrachev, Leonid"]
[WhiteFideId "12414816"]
[BlackFideId "24113433"]
[WhiteElo "1917"]
[BlackElo "2118"]
[Result "1-0"]
[Round "08"]
[TimeControl "180+1"]
[Date "2022.03.09"]
[WhiteClock "0:00:21"]
[BlackClock "0:00:02"]

1. e4 {[%clk 0:03:00]}  d6 {[%clk 0:02:58]} 2. d4 {[%clk 0:03:00]}  Nf6 {[%clk 0:02:58]} 3. Bd3 {[%clk 0:02:58]}  e5 {[%clk 0:02:58]} 4. d5 {[%clk 0:02:58]}  c6 {[%clk 0:02:56]} 5. c4 {[%clk 0:02:58]}  Na6 {[%clk 0:02:55]} 6. Nc3 {[%clk 0:02:56]}  Be7 {[%clk 0:02:54]} 7. Nge2 {[%clk 0:02:55]}  O-O {[%clk 0:02:52]} 8. O-O {[%clk 0:02:55]}  Nd7 {[%clk 0:02:52]} 9. Be3 {[%clk 0:02:52]}  Ndc5 {[%clk 0:02:52]} 10. Bc2 {[%clk 0:02:52]}  cxd5 {[%clk 0:02:49]} 11. Nxd5 {[%clk 0:02:50]}  Ne6 {[%clk 0:02:45]} 12. b4 {[%clk 0:02:47]}  Bd7 {[%clk 0:02:40]} 13. a3 {[%clk 0:02:46]}  Nac7 {[%clk 0:02:38]} 14. Ndc3 {[%clk 0:02:45]}  a6 {[%clk 0:02:36]} 15. Ng3 {[%clk 0:02:39]}  Bg5 {[%clk 0:02:33]} 16. Bxg5 {[%clk 0:02:32]}  Qxg5 {[%clk 0:02:34]} 17. Nf5 {[%clk 0:02:27]}  Nf4 {[%clk 0:02:29]} 18. Qf3 {[%clk 0:02:27]}  Bxf5 {[%clk 0:02:27]} 19. exf5 {[%clk 0:02:27]}  Rac8 {[%clk 0:02:21]} 20. Ne4 {[%clk 0:02:24]}  Qxf5 {[%clk 0:02:15]} 21. Nxd6 {[%clk 0:02:14]}  Qxc2 {[%clk 0:02:15]} 22. Nxc8 {[%clk 0:02:14]}  Rxc8 {[%clk 0:02:11]} 23. Qxb7 {[%clk 0:02:13]}  Qf5 {[%clk 0:02:10]} 24. Rfe1 {[%clk 0:02:05]}  h5 {[%clk 0:02:05]} 25. Rad1 {[%clk 0:01:46]}  h4 {[%clk 0:01:57]} 26. Rxe5 {[%clk 0:01:09]}  Qxe5 {[%clk 0:01:58]} 27. Qxc8+ {[%clk 0:01:09]}  Kh7 {[%clk 0:01:59]} 28. Qb7 {[%clk 0:01:08]}  Nce6 {[%clk 0:01:55]} 29. Qf3 {[%clk 0:01:07]}  Nd4 {[%clk 0:01:52]} 30. Qg4 {[%clk 0:01:04]}  h3 {[%clk 0:01:45]} 31. g3 {[%clk 0:00:55]}  Nd3 {[%clk 0:00:54]} 32. Qxh3+ {[%clk 0:00:48]}  Kg8 {[%clk 0:00:54]} 33. Rxd3 {[%clk 0:00:34]}  Qe4 {[%clk 0:00:49]} 34. Re3 {[%clk 0:00:26]}  Nf3+ {[%clk 0:00:36]} 35. Kf1 {[%clk 0:00:23]}  Qxc4+ {[%clk 0:00:31]} 36. Kg2 {[%clk 0:00:23]}  Qc6 {[%clk 0:00:10]} 37. Rxf3 {[%clk 0:00:22]}  f6 {[%clk 0:00:07]} 38. Qf5 {[%clk 0:00:21]}  a5 {[%clk 0:00:03]} 39. h4 {[%clk 0:00:20]}  axb4 {[%clk 0:00:03]} 40. axb4 {[%clk 0:00:21]}  Kh8 {[%clk 0:00:02]} 41. h5 {[%clk 0:00:21]}  Kg8 {[%clk 0:00:02]} 42. h6 {[%clk 0:00:21]} 1-0


[Site "https://www.chess.com"]

[Event "Titled Tuesday Blitz March 08 Early 2022"]
[White "Oganian, Miran"]
[Black "Saravana, Krishnan P."]
[WhiteFideId "4122488"]
[BlackFideId "5018382"]
[WhiteElo "2357"]
[BlackElo "2210"]
[Result "1-0"]
[Round "08"]
[TimeControl "180+1"]
[Date "2022.03.09"]
[WhiteClock "0:01:03"]
[BlackClock "0:00:11"]

1. e4 {[%clk 0:02:59]}  e6 {[%clk 0:02:54]} 2. d4 {[%clk 0:02:59]}  d5 {[%clk 0:02:54]} 3. Nc3 {[%clk 0:02:57]}  Bb4 {[%clk 0:02:45]} 4. a4 {[%clk 0:02:57]}  dxe4 {[%clk 0:02:41]} 5. Ne2 {[%clk 0:02:53]}  Nf6 {[%clk 0:02:40]} 6. Ng3 {[%clk 0:02:53]}  c5 {[%clk 0:02:38]} 7. Bb5+ {[%clk 0:02:49]}  Nc6 {[%clk 0:02:37]} 8. O-O {[%clk 0:02:43]}  cxd4 {[%clk 0:02:25]} 9. Ncxe4 {[%clk 0:02:43]}  Nxe4 {[%clk 0:02:23]} 10. Nxe4 {[%clk 0:02:43]}  O-O {[%clk 0:02:23]} 11. Bd3 {[%clk 0:02:44]}  f5 {[%clk 0:02:22]} 12. Ng5 {[%clk 0:02:40]}  h6 {[%clk 0:02:18]} 13. Nf3 {[%clk 0:02:40]}  e5 {[%clk 0:02:18]} 14. c3 {[%clk 0:02:32]}  dxc3 {[%clk 0:02:12]} 15. bxc3 {[%clk 0:02:33]}  Bd6 {[%clk 0:02:05]} 16. Bc4+ {[%clk 0:02:22]}  Kh8 {[%clk 0:01:56]} 17. Ng5 {[%clk 0:02:21]}  Qf6 {[%clk 0:01:50]} 18. Qh5 {[%clk 0:02:20]}  e4 {[%clk 0:01:42]} 19. Rd1 {[%clk 0:02:11]}  Ne5 {[%clk 0:01:39]} 20. Be6 {[%clk 0:02:01]}  Bc5 {[%clk 0:01:31]} 21. Bb3 {[%clk 0:01:53]}  Bxf2+ {[%clk 0:01:09]} 22. Kh1 {[%clk 0:01:45]}  e3 {[%clk 0:01:03]} 23. Ba3 {[%clk 0:01:40]}  Qxg5 {[%clk 0:00:44]} 24. Qxg5 {[%clk 0:01:39]}  hxg5 {[%clk 0:00:44]} 25. Bxf8 {[%clk 0:01:39]}  e2 {[%clk 0:00:43]} 26. Rd8 {[%clk 0:01:38]}  Kh7 {[%clk 0:00:36]} 27. Bg8+ {[%clk 0:01:37]}  Kxg8 {[%clk 0:00:27]} 28. Bc5+ {[%clk 0:01:33]}  Kf7 {[%clk 0:00:27]} 29. Bxf2 {[%clk 0:01:34]}  b6 {[%clk 0:00:20]} 30. Re1 {[%clk 0:01:29]}  Bb7 {[%clk 0:00:20]} 31. Rxa8 {[%clk 0:01:29]}  Bxa8 {[%clk 0:00:20]} 32. Rxe2 {[%clk 0:01:30]}  Nc6 {[%clk 0:00:19]} 33. Bd4 {[%clk 0:01:29]}  f4 {[%clk 0:00:19]} 34. Kg1 {[%clk 0:01:28]}  Nxd4 {[%clk 0:00:19]} 35. cxd4 {[%clk 0:01:28]}  Bc6 {[%clk 0:00:20]} 36. Rc2 {[%clk 0:01:20]}  Bxa4 {[%clk 0:00:20]} 37. Rc7+ {[%clk 0:01:21]}  Kf6 {[%clk 0:00:21]} 38. Rxa7 {[%clk 0:01:22]}  b5 {[%clk 0:00:21]} 39. d5 {[%clk 0:01:15]}  Bb3 {[%clk 0:00:21]} 40. d6 {[%clk 0:01:15]}  Be6 {[%clk 0:00:21]} 41. Rb7 {[%clk 0:01:11]}  g4 {[%clk 0:00:18]} 42. Rxb5 {[%clk 0:01:10]}  g5 {[%clk 0:00:18]} 43. Rb7 {[%clk 0:01:10]}  Bf5 {[%clk 0:00:15]} 44. Re7 {[%clk 0:01:09]}  Be6 {[%clk 0:00:14]} 45. Kf2 {[%clk 0:01:09]}  Bf5 {[%clk 0:00:14]} 46. Ke1 {[%clk 0:01:04]}  Be6 {[%clk 0:00:15]} 47. Rh7 {[%clk 0:01:04]}  Bf5 {[%clk 0:00:13]} 48. d7 {[%clk 0:01:05]}  Bxh7 {[%clk 0:00:11]} 49. d8=Q+ {[%clk 0:01:06]}  Kf5 {[%clk 0:00:10]} 50. Qd7+ {[%clk 0:01:04]}  Kg6 {[%clk 0:00:11]} 51. Qe8+ {[%clk 0:01:04]}  Kh6 {[%clk 0:00:11]} 52. Qf8+ {[%clk 0:01:03]}  Kh5 {[%clk 0:00:11]} 53. Qg7 {[%clk 0:01:03]}  Bg6 {[%clk 0:00:11]} 54. Qh8+ {[%clk 0:01:03]} 1-0


[Site "https://www.chess.com"]

[Event "Titled Tuesday Blitz March 08 Early 2022"]
[White "Politov, Pavel Y."]
[Black "Ianov, Viktor"]
[WhiteFideId "24110515"]
[BlackFideId "14102730"]
[WhiteElo "2090"]
[BlackElo "2161"]
[Result "0-1"]
[Round "08"]
[TimeControl "180+1"]
[Date "2022.03.09"]
[WhiteClock "0:00:07"]
[BlackClock "0:01:47"]

1. e4 {[%clk 0:03:00]}  d6 {[%clk 0:02:54]} 2. d4 {[%clk 0:03:00]}  Nf6 {[%clk 0:02:53]} 3. Nc3 {[%clk 0:03:00]}  c6 {[%clk 0:02:53]} 4. Nf3 {[%clk 0:02:55]}  Bg4 {[%clk 0:02:50]} 5. h3 {[%clk 0:02:48]}  Bh5 {[%clk 0:02:49]} 6. Be2 {[%clk 0:02:41]}  Nbd7 {[%clk 0:02:44]} 7. O-O {[%clk 0:02:39]}  e5 {[%clk 0:02:44]} 8. Be3 {[%clk 0:02:33]}  Be7 {[%clk 0:02:39]} 9. Qd2 {[%clk 0:02:24]}  O-O {[%clk 0:02:38]} 10. Rad1 {[%clk 0:02:12]}  Qc7 {[%clk 0:02:38]} 11. d5 {[%clk 0:01:58]}  cxd5 {[%clk 0:02:31]} 12. exd5 {[%clk 0:01:50]}  a6 {[%clk 0:02:28]} 13. a4 {[%clk 0:01:38]}  Rfc8 {[%clk 0:02:26]} 14. Ng5 {[%clk 0:01:21]}  Bg6 {[%clk 0:02:22]} 15. Bd3 {[%clk 0:01:17]}  Nb6 {[%clk 0:02:17]} 16. Bxg6 {[%clk 0:01:13]}  hxg6 {[%clk 0:02:16]} 17. Bxb6 {[%clk 0:00:47]}  Qxb6 {[%clk 0:02:15]} 18. Qc1 {[%clk 0:00:40]}  Rc4 {[%clk 0:02:12]} 19. Rfe1 {[%clk 0:00:35]}  Rac8 {[%clk 0:02:11]} 20. Nge4 {[%clk 0:00:32]}  Nd7 {[%clk 0:02:05]} 21. b3 {[%clk 0:00:29]}  Rxc3 {[%clk 0:02:03]} 22. Nxc3 {[%clk 0:00:28]}  Rxc3 {[%clk 0:02:03]} 23. Re3 {[%clk 0:00:25]}  Bg5 {[%clk 0:01:59]} 24. Rdd3 {[%clk 0:00:13]}  Rxd3 {[%clk 0:01:56]} 25. cxd3 {[%clk 0:00:11]}  Bxe3 {[%clk 0:01:56]} 26. Qc8+ {[%clk 0:00:10]}  Nf8 {[%clk 0:01:55]} 27. fxe3 {[%clk 0:00:09]}  Qxe3+ {[%clk 0:01:55]} 28. Kh2 {[%clk 0:00:08]}  Qf4+ {[%clk 0:01:49]} 29. Kg1 {[%clk 0:00:08]}  Qd4+ {[%clk 0:01:47]} 30. Kh2 {[%clk 0:00:07]}  Qxd5 {[%clk 0:01:47]} 0-1


[Site "https://www.chess.com"]

[Event "Titled Tuesday Blitz March 08 Early 2022"]
[White "Ptacnikova, Lenka"]
[Black "Aggelis, Nikolaos"]
[WhiteFideId "305650"]
[BlackFideId "4213220"]
[WhiteElo "1923"]
[BlackElo "2154"]
[Result "0-1"]
[Round "08"]
[TimeControl "180+1"]
[Date "2022.03.09"]
[WhiteClock "0:00:01"]
[BlackClock "0:00:54"]

1. c4 {[%clk 0:02:53]}  Nf6 {[%clk 0:02:58]} 2. Nf3 {[%clk 0:02:52]}  g6 {[%clk 0:02:57]} 3. g3 {[%clk 0:02:52]}  Bg7 {[%clk 0:02:57]} 4. Bg2 {[%clk 0:02:53]}  O-O {[%clk 0:02:56]} 5. O-O {[%clk 0:02:53]}  d5 {[%clk 0:02:56]} 6. cxd5 {[%clk 0:02:51]}  Nxd5 {[%clk 0:02:57]} 7. Nc3 {[%clk 0:02:39]}  Nxc3 {[%clk 0:02:54]} 8. bxc3 {[%clk 0:02:38]}  c5 {[%clk 0:02:52]} 9. Qc2 {[%clk 0:02:31]}  Nc6 {[%clk 0:02:53]} 10. Rb1 {[%clk 0:02:29]}  Bf5 {[%clk 0:02:51]} 11. e4 {[%clk 0:02:28]}  Bc8 {[%clk 0:02:50]} 12. d3 {[%clk 0:02:25]}  b6 {[%clk 0:02:50]} 13. Be3 {[%clk 0:02:21]}  Bg4 {[%clk 0:02:45]} 14. h3 {[%clk 0:02:20]}  Bxf3 {[%clk 0:02:45]} 15. Bxf3 {[%clk 0:02:20]}  Rc8 {[%clk 0:02:46]} 16. Rfd1 {[%clk 0:02:14]}  Qc7 {[%clk 0:02:46]} 17. Bg2 {[%clk 0:02:00]}  Rfd8 {[%clk 0:02:44]} 18. Qb3 {[%clk 0:01:57]}  Na5 {[%clk 0:02:35]} 19. Qc2 {[%clk 0:01:57]}  Qe5 {[%clk 0:02:30]} 20. Rbc1 {[%clk 0:01:49]}  h5 {[%clk 0:02:24]} 21. f4 {[%clk 0:01:48]}  Qc7 {[%clk 0:02:18]} 22. e5 {[%clk 0:01:45]}  e6 {[%clk 0:02:09]} 23. Be4 {[%clk 0:01:43]}  Bf8 {[%clk 0:01:59]} 24. Kg2 {[%clk 0:01:40]}  Nc6 {[%clk 0:01:44]} 25. h4 {[%clk 0:01:32]}  Qd7 {[%clk 0:01:41]} 26. Qf2 {[%clk 0:01:22]}  Ne7 {[%clk 0:01:41]} 27. d4 {[%clk 0:01:16]}  cxd4 {[%clk 0:01:30]} 28. cxd4 {[%clk 0:01:13]}  Nd5 {[%clk 0:01:29]} 29. Bd2 {[%clk 0:01:10]}  Qa4 {[%clk 0:01:28]} 30. Be1 {[%clk 0:00:52]}  Nc3 {[%clk 0:01:22]} 31. Bxc3 {[%clk 0:00:47]}  Ba3 {[%clk 0:01:18]} 32. Qc2 {[%clk 0:00:35]}  Qc4 {[%clk 0:01:10]} 33. Bb2 {[%clk 0:00:13]}  Qxc2+ {[%clk 0:01:09]} 34. Rxc2 {[%clk 0:00:13]}  Rxc2+ {[%clk 0:01:09]} 35. Bxc2 {[%clk 0:00:13]}  Bxb2 {[%clk 0:01:10]} 36. d5 {[%clk 0:00:12]}  exd5 {[%clk 0:01:06]} 37. Bb3 {[%clk 0:00:12]}  d4 {[%clk 0:01:05]} 38. Kf3 {[%clk 0:00:11]}  d3 {[%clk 0:01:03]} 39. Ke3 {[%clk 0:00:11]}  d2 {[%clk 0:01:02]} 40. Ke2 {[%clk 0:00:07]}  Bc1 {[%clk 0:00:59]} 41. e6 {[%clk 0:00:02]}  fxe6 {[%clk 0:00:59]} 42. Bxe6+ {[%clk 0:00:03]}  Kg7 {[%clk 0:00:59]} 43. Bc4 {[%clk 0:00:03]}  Kf6 {[%clk 0:00:56]} 44. Bd3 {[%clk 0:00:03]}  Re8+ {[%clk 0:00:55]} 45. Kf3 {[%clk 0:00:02]}  Rd8 {[%clk 0:00:55]} 46. Be4 {[%clk 0:00:02]}  Rc8 {[%clk 0:00:55]} 47. Bd5 {[%clk 0:00:01]}  Rc3+ {[%clk 0:00:54]} 0-1


[Site "https://www.chess.com"]

[Event "Titled Tuesday Blitz March 08 Early 2022"]
[White "Rodchenkov, Sergey D."]
[Black "Muradov, Soltan"]
[WhiteFideId "4168712"]
[BlackFideId "14002108"]
[WhiteElo "2306"]
[BlackElo "1854"]
[Result "1-0"]
[Round "08"]
[TimeControl "180+1"]
[Date "2022.03.09"]
[WhiteClock "0:00:24"]
[BlackClock "0:00:08"]

1. e4 {[%clk 0:03:00]}  e5 {[%clk 0:02:56]} 2. Nf3 {[%clk 0:03:00]}  Nf6 {[%clk 0:02:54]} 3. d4 {[%clk 0:02:56]}  Nxe4 {[%clk 0:02:52]} 4. Bd3 {[%clk 0:02:53]}  d5 {[%clk 0:02:52]} 5. Nxe5 {[%clk 0:02:53]}  Nd7 {[%clk 0:02:52]} 6. Nxd7 {[%clk 0:02:45]}  Bxd7 {[%clk 0:02:52]} 7. Nc3 {[%clk 0:02:35]}  Bb4 {[%clk 0:02:37]} 8. O-O {[%clk 0:02:35]}  Nxc3 {[%clk 0:02:37]} 9. bxc3 {[%clk 0:02:36]}  Bxc3 {[%clk 0:02:37]} 10. Ba3 {[%clk 0:02:36]}  Bxa1 {[%clk 0:02:30]} 11. Qxa1 {[%clk 0:02:37]}  f6 {[%clk 0:02:06]} 12. Qd1 {[%clk 0:02:25]}  Kf7 {[%clk 0:02:00]} 13. Qh5+ {[%clk 0:01:52]}  g6 {[%clk 0:02:00]} 14. Qxd5+ {[%clk 0:01:53]}  Be6 {[%clk 0:02:01]} 15. Qxb7 {[%clk 0:01:53]}  Qxd4 {[%clk 0:01:54]} 16. Qxc7+ {[%clk 0:01:33]}  Qd7 {[%clk 0:01:54]} 17. Qf4 {[%clk 0:01:32]}  Rab8 {[%clk 0:01:45]} 18. h4 {[%clk 0:01:23]}  Bf5 {[%clk 0:00:33]} 19. Bc4+ {[%clk 0:01:14]}  Kg7 {[%clk 0:00:33]} 20. Bc1 {[%clk 0:01:07]}  h5 {[%clk 0:00:32]} 21. Bb3 {[%clk 0:01:02]}  Rbd8 {[%clk 0:00:31]} 22. Bb2 {[%clk 0:01:00]}  Rhe8 {[%clk 0:00:26]} 23. Bc1 {[%clk 0:00:54]}  Rh8 {[%clk 0:00:26]} 24. Bb2 {[%clk 0:00:53]}  Rhe8 {[%clk 0:00:26]} 25. f3 {[%clk 0:00:48]}  Qd6 {[%clk 0:00:22]} 26. Qa4 {[%clk 0:00:46]}  Qc5+ {[%clk 0:00:20]} 27. Kh2 {[%clk 0:00:43]}  Re2 {[%clk 0:00:20]} 28. Qf4 {[%clk 0:00:35]}  Rdd2 {[%clk 0:00:17]} 29. Rg1 {[%clk 0:00:33]}  a5 {[%clk 0:00:10]} 30. Bc1 {[%clk 0:00:28]}  Qxg1+ {[%clk 0:00:09]} 31. Kxg1 {[%clk 0:00:26]}  Rxg2+ {[%clk 0:00:10]} 32. Kf1 {[%clk 0:00:24]}  Rgf2+ {[%clk 0:00:10]} 33. Kg1 {[%clk 0:00:23]}  Rg2+ {[%clk 0:00:10]} 34. Kh1 {[%clk 0:00:23]}  Rh2+ {[%clk 0:00:09]} 35. Qxh2 {[%clk 0:00:23]}  Rd1+ {[%clk 0:00:08]} 36. Qg1 {[%clk 0:00:24]} 1-0


[Site "https://www.chess.com"]

[Event "Titled Tuesday Blitz March 08 Early 2022"]
[White "Romanchuk, Viktor"]
[Black "Wagner, Dennis"]
[WhiteFideId "14109271"]
[BlackFideId "24650684"]
[WhiteElo "2242"]
[BlackElo "2355"]
[Result "0-1"]
[Round "08"]
[TimeControl "180+1"]
[Date "2022.03.09"]
[WhiteClock "0:01:21"]
[BlackClock "0:00:44"]

1. d4 {[%clk 0:03:00]}  d5 {[%clk 0:02:54]} 2. c4 {[%clk 0:03:01]}  c6 {[%clk 0:02:54]} 3. Nc3 {[%clk 0:03:01]}  Nf6 {[%clk 0:02:53]} 4. e3 {[%clk 0:03:00]}  e6 {[%clk 0:02:53]} 5. Nf3 {[%clk 0:03:00]}  Nbd7 {[%clk 0:02:54]} 6. Qc2 {[%clk 0:02:59]}  Bd6 {[%clk 0:02:53]} 7. b3 {[%clk 0:02:59]}  O-O {[%clk 0:02:52]} 8. Bb2 {[%clk 0:02:59]}  e5 {[%clk 0:02:51]} 9. dxe5 {[%clk 0:02:58]}  Nxe5 {[%clk 0:02:51]} 10. O-O-O {[%clk 0:02:59]}  Qe7 {[%clk 0:02:43]} 11. cxd5 {[%clk 0:02:56]}  cxd5 {[%clk 0:02:42]} 12. Nb5 {[%clk 0:02:54]}  Nxf3 {[%clk 0:02:13]} 13. Nxd6 {[%clk 0:02:37]}  Qxd6 {[%clk 0:02:14]} 14. gxf3 {[%clk 0:02:36]}  Bd7 {[%clk 0:02:13]} 15. Kb1 {[%clk 0:02:36]}  Rfc8 {[%clk 0:02:09]} 16. Qd3 {[%clk 0:02:35]}  a5 {[%clk 0:02:00]} 17. Rg1 {[%clk 0:02:25]}  a4 {[%clk 0:01:52]} 18. Qd4 {[%clk 0:02:21]}  Bf5+ {[%clk 0:01:41]} 19. e4 {[%clk 0:02:18]}  Bg6 {[%clk 0:01:20]} 20. Bd3 {[%clk 0:02:11]}  axb3 {[%clk 0:01:18]} 21. axb3 {[%clk 0:02:03]}  Qe6 {[%clk 0:00:48]} 22. exd5 {[%clk 0:01:51]}  Qa6 {[%clk 0:00:46]} 23. Qa4 {[%clk 0:01:21]}  Bxd3+ {[%clk 0:00:44]} 0-1


[Site "https://www.chess.com"]

[Event "Titled Tuesday Blitz March 08 Early 2022"]
[White "Rudzinska, Michalina"]
[Black "Mohammadian, Mohammad"]
[WhiteFideId "1172883"]
[BlackFideId "12566055"]
[WhiteElo "1904"]
[BlackElo "1544"]
[Result "1-0"]
[Round "08"]
[TimeControl "180+1"]
[Date "2022.03.09"]
[WhiteClock "0:02:27"]
[BlackClock "0:00:52"]

1. Nf3 {[%clk 0:03:00]}  Nf6 {[%clk 0:02:58]} 2. b3 {[%clk 0:03:01]}  g6 {[%clk 0:02:55]} 3. Bb2 {[%clk 0:03:02]}  Bg7 {[%clk 0:02:54]} 4. c4 {[%clk 0:03:03]}  c5 {[%clk 0:02:52]} 5. d4 {[%clk 0:03:04]}  cxd4 {[%clk 0:02:46]} 6. Nxd4 {[%clk 0:03:05]}  O-O {[%clk 0:02:45]} 7. g3 {[%clk 0:03:03]}  d6 {[%clk 0:02:42]} 8. Bg2 {[%clk 0:03:03]}  Qb6 {[%clk 0:02:36]} 9. O-O {[%clk 0:03:02]}  Nc6 {[%clk 0:02:29]} 10. Nxc6 {[%clk 0:03:01]}  bxc6 {[%clk 0:02:29]} 11. Nc3 {[%clk 0:03:02]}  Bb7 {[%clk 0:02:26]} 12. e4 {[%clk 0:03:02]}  Rab8 {[%clk 0:02:22]} 13. Qe2 {[%clk 0:03:02]}  Nd7 {[%clk 0:02:20]} 14. Kh1 {[%clk 0:03:01]}  Qa5 {[%clk 0:02:11]} 15. Rac1 {[%clk 0:02:59]}  Ne5 {[%clk 0:02:06]} 16. f4 {[%clk 0:02:58]}  Nd7 {[%clk 0:02:01]} 17. h4 {[%clk 0:02:53]}  Nf6 {[%clk 0:01:57]} 18. Bf3 {[%clk 0:02:52]}  h5 {[%clk 0:01:55]} 19. f5 {[%clk 0:02:50]}  Qc7 {[%clk 0:01:44]} 20. fxg6 {[%clk 0:02:49]}  fxg6 {[%clk 0:01:43]} 21. Qe3 {[%clk 0:02:49]}  Nh7 {[%clk 0:01:29]} 22. Rc2 {[%clk 0:02:42]}  Rf7 {[%clk 0:01:25]} 23. Ne2 {[%clk 0:02:39]}  Rbf8 {[%clk 0:01:24]} 24. Bxg7 {[%clk 0:02:39]}  Kxg7 {[%clk 0:01:24]} 25. Nf4 {[%clk 0:02:39]}  Qd7 {[%clk 0:01:15]} 26. Bg2 {[%clk 0:02:36]}  Nf6 {[%clk 0:01:13]} 27. Bh3 {[%clk 0:02:35]}  Ng4 {[%clk 0:01:12]} 28. Bxg4 {[%clk 0:02:34]}  Qxg4 {[%clk 0:01:11]} 29. Rcf2 {[%clk 0:02:34]}  c5 {[%clk 0:01:06]} 30. Kh2 {[%clk 0:02:32]}  Kh7 {[%clk 0:01:00]} 31. Nh3 {[%clk 0:02:27]}  Rxf2+ {[%clk 0:00:58]} 32. Rxf2 {[%clk 0:02:28]}  Rxf2+ {[%clk 0:00:57]} 33. Qxf2 {[%clk 0:02:29]}  Bxe4 {[%clk 0:00:54]} 34. Ng5+ {[%clk 0:02:27]}  Kh6 {[%clk 0:00:52]} 35. Qf8# {[%clk 0:02:27]} 1-0


[Site "https://www.chess.com"]

[Event "Titled Tuesday Blitz March 08 Early 2022"]
[White "Sahil, Tickoo"]
[Black "Marcinczyk, Monika"]
[WhiteFideId "5019710"]
[BlackFideId "1192051"]
[WhiteElo "2099"]
[BlackElo "1783"]
[Result "1-0"]
[Round "08"]
[TimeControl "180+1"]
[Date "2022.03.09"]
[WhiteClock "0:00:52"]
[BlackClock "0:00:09"]

1. d4 {[%clk 0:03:00]}  d5 {[%clk 0:02:59]} 2. Bf4 {[%clk 0:02:57]}  Nf6 {[%clk 0:02:57]} 3. e3 {[%clk 0:02:53]}  Bf5 {[%clk 0:02:56]} 4. c4 {[%clk 0:02:53]}  e6 {[%clk 0:02:55]} 5. Nc3 {[%clk 0:02:53]}  Be7 {[%clk 0:02:51]} 6. Qb3 {[%clk 0:02:51]}  b6 {[%clk 0:02:50]} 7. cxd5 {[%clk 0:02:49]}  exd5 {[%clk 0:02:49]} 8. Bb5+ {[%clk 0:02:48]}  c6 {[%clk 0:02:49]} 9. Bxb8 {[%clk 0:02:46]}  cxb5 {[%clk 0:02:49]} 10. Bg3 {[%clk 0:02:41]}  a6 {[%clk 0:02:47]} 11. Nf3 {[%clk 0:02:40]}  O-O {[%clk 0:02:40]} 12. O-O {[%clk 0:02:37]}  Rc8 {[%clk 0:02:28]} 13. Rfe1 {[%clk 0:02:32]}  h6 {[%clk 0:01:49]} 14. Bh4 {[%clk 0:02:25]}  Be6 {[%clk 0:01:40]} 15. Ne5 {[%clk 0:02:23]}  Ne4 {[%clk 0:01:32]} 16. Bxe7 {[%clk 0:02:21]}  Qxe7 {[%clk 0:01:32]} 17. Rac1 {[%clk 0:02:12]}  Nxc3 {[%clk 0:01:31]} 18. Rxc3 {[%clk 0:02:06]}  b4 {[%clk 0:01:22]} 19. Rxc8 {[%clk 0:02:05]}  Rxc8 {[%clk 0:01:21]} 20. h3 {[%clk 0:01:55]}  a5 {[%clk 0:01:16]} 21. a3 {[%clk 0:01:43]}  bxa3 {[%clk 0:01:11]} 22. bxa3 {[%clk 0:01:44]}  Qd6 {[%clk 0:00:34]} 23. Rb1 {[%clk 0:01:37]}  Bf5 {[%clk 0:00:34]} 24. Qxb6 {[%clk 0:01:26]}  Qxa3 {[%clk 0:00:34]} 25. Rf1 {[%clk 0:01:12]}  Qb4 {[%clk 0:00:27]} 26. Qa7 {[%clk 0:00:56]}  Be6 {[%clk 0:00:09]} 27. Ra1 {[%clk 0:00:52]} 1-0


[Site "https://www.chess.com"]